Workbook

Sheet Order Sheet
K2: Project/Avani SO:
K3: Ship to City/St:
K4: Tag/Attn:
C6: Total | D6: Tube | I6: Slip tubes | L6: Elbows R=1D | P6: Segments | U6: Clamp | W6: O-ring | X6: Hose | Y6: Hose | Z6: Hose | AA6: Insp | AB6: Clean | AC6: T V | AD6: T V
D7: 78.74" | E7: 40" | F7: 20" | G7: 8" | H7: 2" | I7: 40" | J7: 20" | K7: 8" | T7: Conn | U7: Pull | V7: U | W7: Ring | Y7: Hose | Z7: Clamps | AC7: Blast | AD7: w/
B8: inch | C8: ft | D8: 2000 | E8: 1000 | F8: 500 | G8: 200 | H8: 50 | I8: 1000 | J8: 500 | K8: 200 | L8: 90 | M8: 60 | N8: 45 | O8: 30 | P8: 45 | Q8: 30 | R8: 15 | S8: 5 | T8: Flange | U8: Ring | V8: Gasket | W8: Seal | X8: ft | Y8: Adapt | AA8: Sect | AB8: Sect | AC8: BFD | AD8: seal
A9: 60 | B9: 2 1/4"
A10: 80 | B10: 3"
A11: 100 | B11: 4"
A12: 120 | B12: 5"
A13: 140 | B13: 5 1/2"
A14: 150 | B14: 6"
A15: 175 | B15: 7"
A16: 200 | B16: 8" | E16: 2 | F16: 1 | I16: 2 | L16: 1 | T16: 1 | U16: =V16+W16 -> 13 | V16: =ROUNDUP((AC16+SUM(D16:T16))*1.25,0) -> 10 | W16: =ROUNDUP(SUM(I16:K16)*1.25,0) -> 3 | AC16: 1
A17: 224 | B17: 9"
A18: 250 | B18: 10" | U18: 1 | V18: 1 | W18: =ROUNDUP(SUM(I18:K18)*1.25,0) -> 0
A19: 300 | B19: 12" | U19: =V19+W19 -> 0 | V19: =ROUNDUP((AC19+SUM(D19:T19))*1.25,0) -> 0 | W19: 0
A20: 350 | B20: 14" | F20: 1 | I20: 1 | M20: 1 | U20: =V20+W20 -> 6 | V20: =ROUNDUP((AC20+SUM(D20:T20))*1.25,0) -> 4 | W20: =ROUNDUP(SUM(I20:K20)*1.25,0) -> 2
A21: 400 | B21: 16"
A22: 450 | B22: 18"
A23: 500 | B23: 20"
A24: 560 | B24: 22"
A25: 630 | B25: 25"
D26: Application Information
E27: Material: | H27: Stainless | J27: X | K27: Coated | N27: Galvanized | V27: Spray Paint
E28: Thickness: | G28: X | H28: 1mm (19ga) | K28: 2mm (14ga)
E29: Clamps: | G29: X | H29: Quick Conn. | K29: Bolted | N29: Stainless | Q29: Galvanized
E30: Gaskets: | G30: X | H30: Perbunan | K30: Silicone | N30: Keltan | Q30: Viton | T30: PTFE

Sheet Price Sheet

Sheet Branches
E2: Project/Avani SO: | F2: ='Order Sheet'!L2 -> 0
E3: Ship to City/St: | F3: ='Order Sheet'!L3 -> 0
E4: Tag/Attn: | F4: ='Order Sheet'!L4 -> 0
C7: Y - Branches | X7: Conical Laterals
C8: 90 deg | D8: 60 deg. | E8: 60 deg. (B) | X8: 30 deg.
A9: (A) | B9: inch | C9: Symmetrical | E9: 60 | F9: 80 | G9: 100 | H9: 120 | I9: 140 | J9: 150 | K9: 175 | L9: 200 | M9: 224 | N9: 250 | O9: 300 | P9: 350 | Q9: 400 | R9: 450 | S9: 500 | T9: 560 | U9: 630 | W9: Qty | X9: A | Y9: B | Z9: C | AB9: Qty | AC9: A | AD9: B | AE9: C | AG9: Qty | AH9: A | AI9: B | AJ9: C | AL9: Qty | AM9: A | AN9: B | AO9: C | AQ9: Qty | AR9: A | AS9: B | AT9: C
A10: 60 | B10: 2 1/4" | X10: 60 | Y10: 60 | Z10: 60 | AC10: 150 | AD10: 120 | AE10: 100 | AH10: 200 | AI10: 175 | AJ10: 150 | AM10: 300 | AN10: 224 | AO10: 224 | AR10: 400 | AS10: 350 | AT10: 175
A11: 80 | B11: 3" | X11: 80 | Y11: 60 | Z11: 60 | AC11: 150 | AD11: 120 | AE11: 120 | AH11: 200 | AI11: 200 | AJ11: 80 | AM11: 300 | AN11: 250 | AO11: 140 | AR11: 400 | AS11: 350 | AT11: 224
A12: 100 | B12: 4" | X12: 80 | Y12: 80 | Z12: 80 | AC12: 150 | AD12: 140 | AE12: 80 | AH12: 200 | AI12: 200 | AJ12: 100 | AM12: 300 | AN12: 250 | AO12: 150 | AR12: 400 | AS12: 400 | AT12: 400
A13: 120 | B13: 5" | X13: 100 | Y13: 80 | Z13: 80 | AC13: 150 | AD13: 150 | AE13: 80 | AH13: 200 | AI13: 200 | AJ13: 200 | AM13: 300 | AN13: 250 | AO13: 175 | AR13: 450 | AS13: 350 | AT13: 300
A14: 140 | B14: 5 1/2" | X14: 100 | Y14: 100 | Z14: 80 | AC14: 150 | AD14: 150 | AE14: 150 | AH14: 224 | AI14: 150 | AJ14: 150 | AM14: 300 | AN14: 250 | AO14: 200 | AR14: 450 | AS14: 350 | AT14: 350
A15: 150 | B15: 6" | X15: 100 | Y15: 100 | Z15: 100 | AC15: 175 | AD15: 120 | AE15: 120 | AH15: 224 | AI15: 175 | AJ15: 140 | AM15: 300 | AN15: 250 | AO15: 250 | AR15: 450 | AS15: 400 | AT15: 200
A16: 175 | B16: 7" | X16: 120 | Y16: 80 | Z16: 80 | AC16: 175 | AD16: 140 | AE16: 120 | AH16: 224 | AI16: 200 | AJ16: 100 | AM16: 300 | AN16: 300 | AO16: 80 | AR16: 450 | AS16: 400 | AT16: 250
A17: 200 | B17: 8" | X17: 120 | Y17: 100 | Z17: 80 | AC17: 175 | AD17: 150 | AE17: 80 | AH17: 224 | AI17: 200 | AJ17: 120 | AM17: 300 | AN17: 300 | AO17: 100 | AR17: 450 | AS17: 450 | AT17: 450
A18: 224 | B18: 9" | X18: 120 | Y18: 100 | Z18: 100 | AC18: 175 | AD18: 150 | AE18: 100 | AH18: 224 | AI18: 224 | AJ18: 224 | AM18: 300 | AN18: 300 | AO18: 300 | AR18: 500 | AS18: 400 | AT18: 350
A19: 250 | B19: 10" | X19: 120 | Y19: 120 | Z19: 80 | AC19: 175 | AD19: 150 | AE19: 120 | AH19: 250 | AI19: 200 | AJ19: 150 | AM19: 350 | AN19: 250 | AO19: 250 | AR19: 500 | AS19: 400 | AT19: 400
A20: 300 | B20: 12" | X20: 120 | Y20: 120 | Z20: 120 | AC20: 175 | AD20: 150 | AE20: 150 | AH20: 250 | AI20: 200 | AJ20: 175 | AM20: 350 | AN20: 300 | AO20: 150 | AR20: 500 | AS20: 450 | AT20: 224
A21: 350 | B21: 14" | X21: 140 | Y21: 100 | Z21: 100 | AC21: 175 | AD21: 175 | AE21: 175 | AH21: 250 | AI21: 200 | AJ21: 200 | AM21: 350 | AN21: 300 | AO21: 200 | AR21: 500 | AS21: 450 | AT21: 300
A22: 400 | B22: 16" | X22: 140 | Y22: 120 | Z22: 80 | AC22: 200 | AD22: 140 | AE22: 140 | AH22: 250 | AI22: 224 | AJ22: 120 | AM22: 350 | AN22: 300 | AO22: 224 | AR22: 500 | AS22: 500 | AT22: 500
A23: 450 | B23: 18" | X23: 140 | Y23: 120 | Z23: 100 | AC23: 200 | AD23: 150 | AE23: 120 | AH23: 250 | AI23: 224 | AJ23: 140 | AM23: 350 | AN23: 300 | AO23: 250
A24: 500 | B24: 20" | X24: 140 | Y24: 140 | Z24: 80 | AC24: 200 | AD24: 150 | AE24: 150 | AH24: 250 | AI24: 250 | AJ24: 80 | AL24: 1 | AM24: 350 | AN24: 350 | AO24: 350
A25: 560 | B25: 22" | X25: 140 | Y25: 140 | Z25: 140 | AC25: 200 | AD25: 175 | AE25: 100 | AH25: 250 | AI25: 250 | AJ25: 100 | AM25: 400 | AN25: 300 | AO25: 250
A26: 630 | B26: 25" | X26: 150 | Y26: 100 | Z26: 100 | AC26: 200 | AD26: 175 | AE26: 120 | AH26: 250 | AI26: 250 | AJ26: 250 | AM26: 400 | AN26: 300 | AO26: 300
A29: Cone Adapters | C29: (B)
A30: (A) | B30: inch | C30: 60 | D30: 80 | E30: 100 | F30: 120 | G30: 140 | H30: 150 | I30: 175 | J30: 200 | K30: 224 | L30: 250 | M30: 300 | N30: 350 | O30: 400 | P30: 450 | Q30: 500 | R30: 560 | S30: 630
A31: 60 | B31: 2 1/4"
A32: 80 | B32: 3"
A33: 100 | B33: 4"
A34: 120 | B34: 5"
A35: 140 | B35: 5 1/2"
A36: 150 | B36: 6"
A37: 175 | B37: 7"
A38: 200 | B38: 8" | L38: 1
A39: 224 | B39: 9"
A40: 250 | B40: 10" | N40: 1
A41: 300 | B41: 12"
A42: 350 | B42: 14"
A43: 400 | B43: 16"
A44: 450 | B44: 18"
A45: 500 | B45: 20"
A46: 560 | B46: 22"
A47: 630 | B47: 25"

Sheet Unlinked Quote (hidden)
C7: Project/Avani SO: | D7: ='Order Sheet'!L2 -> 0
C8: Ship to City/St: | D8: ='Order Sheet'!L3:O3 -> 
C9: Tag/Attn: | D9: ='Order Sheet'!L4:O4 -> 
C11: Part Number | D11: Description | E11: Quantity | F11: List Price | G11: Discount | H11: Avani Cost
A13: PIPE 2000mm (78") | B13: 19 gauge Stainless Steel | C13: 11063010 | D13: Tube, 60mm dia., 2000mm long, | F13: 101.51 | G13: 0.75 | H13: =G13*F13*E13 -> 0
C14: 11083010 | D14: Tube, 80mm dia., 2000mm long, | F14: 121.57 | G14: 0.75 | H14: =G14*F14*E14 -> 0
C15: 11103010 | D15: Tube, 100mm dia, 2000mm long, | F15: 122.62 | G15: 0.75 | H15: 0
C16: 11123010 | D16: Tube, 120mm dia., 2000mm long, | F16: 139.91 | G16: 0.75 | H16: 0
C17: 11143010 | D17: Tube, 140mm dia., 2000mm long, | F17: 161.69 | G17: 0.75 | H17: 0
C18: 11153010 | D18: Tube, 150mm dia., 2000mm long, | F18: 161.69 | G18: 0.75 | H18: 0
C19: 11173010 | D19: Tube, 175mm dia., 2000mm long, | F19: 176.87 | G19: 0.75 | H19: 0
C20: 11203010 | D20: Tube, 200mm dia., 2000mm long, | F20: 196.01 | G20: 0.75 | H20: 0
C21: 11223010 | D21: Tube, 224mm dia., 2000mm long, | F21: 217.79 | G21: 0.75 | H21: 0
C22: 11253010 | D22: Tube, 250mm dia., 2000mm long, | F22: 217.79 | G22: 0.75 | H22: 0
C23: 11303010 | D23: Tube, 300mm dia., 2000mm long, | F23: 265.97 | G23: 0.75 | H23: 0
C24: 11353010 | D24: Tube, 350mm dia., 2000mm long, | F24: 289.73 | G24: 0.75 | H24: 0
C25: 11403010 | D25: Tube, 400mm dia., 2000mm long, | F25: 367.61 | G25: 0.75 | H25: 0
C26: 11453010 | D26: Tube, 450mm dia., 2000mm long, | F26: 430.97 | G26: 0.75 | H26: 0
C27: 11503010 | D27: Tube, 500mm dia., 2000mm long, | F27: 502.25 | G27: 0.75 | H27: 0
B28: 14 gauge Stainless Steel | C28: 12103010 | D28: Tube, 100mm dia., 2000mm long, | F28: 201.95 | G28: 0.75 | H28: 0
C29: 12123010 | D29: Tube, 120mm dia., 2000mm long, | F29: 233.63 | G29: 0.75 | H29: 0
C30: 12153010 | D30: Tube, 150mm dia., 2000mm long, | F30: 275.87 | G30: 0.75 | H30: 0
C31: 12173010 | D31: Tube, 175mm dia., 2000mm long, | F31: 306.88 | G31: 0.75 | H31: 0
C32: 12203010 | D32: Tube, 200mm dia., 2000mm long, | F32: 366.28 | G32: 0.75 | H32: 0
C33: 12253010 | D33: Tube, 250mm dia., 2000mm long, | F33: 419.08 | G33: 0.75 | H33: 0
C34: 12303010 | D34: Tube, 300mm dia., 2000mm long, | F34: 492.33 | G34: 0.75 | H34: 0
C35: 12353010 | D35: Tube, 350mm dia., 2000mm long, | F35: 520.71 | G35: 0.75 | H35: 0
C36: 12403010 | D36: Tube, 400mm dia., 2000mm long, | F36: 603.21 | G36: 0.75 | H36: 0
C37: 12453010 | D37: Tube, 450mm dia., 2000mm long, | F37: 673.17 | G37: 0.75 | H37: 0
C38: 12503010 | D38: Tube, 500mm dia., 2000mm long, | F38: 796.58 | G38: 0.75 | H38: 0
C39: 12563010 | D39: Tube, 560mm dia., 2000mm long, | F39: 854 | G39: 0.75 | H39: 0
C40: 12633010 | D40: Tube, 630mm dia., 2000mm long, | F40: 933.19 | G40: 0.75 | H40: 0
B41: 14 gauge Galvanized | C41: 12562010 | D41: Tube, 560mm dia., 2000mm long, | F41: 498.27 | G41: 0.75 | H41: 0
C42: 12632010 | D42: Tube, 630mm dia., 2000mm long, | F42: 558.99 | G42: 0.75 | H42: 0
B43: 19 gauge Galvanized | C43: 11082010 | D43: Tube, 80mm dia., 2000mm long, | F43: 45.8 | G43: 0.75 | H43: 0
C44: 11102010 | D44: Tube, 100mm dia., 2000mm long, | F44: 46.33 | G44: 0.75 | H44: 0
C45: 11122010 | D45: Tube, 120mm dia., 2000mm long, | F45: 51.48 | G45: 0.75 | H45: 0
C46: 11142010 | D46: Tube, 140mm dia., 2000mm long, | F46: 62.7 | G46: 0.75 | H46: 0
C47: 11152010 | D47: Tube, 150mm dia., 2000mm long, | F47: 62.17 | G47: 0.75 | H47: 0
C48: 11172010 | D48: Tube, 175mm dia., 2000mm long, | F48: 72.99 | G48: 0.75 | H48: 0
C49: 11202010 | D49: Tube, 200mm dia., 2000mm long, | F49: 83.68 | G49: 0.75 | H49: 0
C50: 11222010 | D50: Tube, 224mm dia., 2000mm long, | F50: 90.28 | G50: 0.75 | H50: 0
C51: 11252010 | D51: Tube, 250mm dia., 2000mm long, | F51: 90.28 | G51: 0.75 | H51: 0
C52: 11302010 | D52: Tube, 300mm dia., 2000mm long, | F52: 107.31 | G52: 0.75 | H52: 0
C53: 11352010 | D53: Tube, 350mm dia., 2000mm long, | F53: 132.65 | G53: 0.75 | H53: 0
C54: 11402010 | D54: Tube, 400mm dia., 2000mm long, | F54: 173.57 | G54: 0.75 | H54: 0
C55: 11452010 | D55: Tube, 450mm dia., 2000mm long, | F55: 203.27 | G55: 0.75 | H55: 0
C56: 11502010 | D56: Tube, 500mm dia., 2000mm long, | F56: 225.06 | G56: 0.75 | H56: 0
B57: 11 gauge Painted | C57: 13121010 | D57: Tube, 120mm dia., 2000mm long, | F57: 82.36 | G57: 0.75 | H57: 0
C58: 13151010 | D58: Tube, 150mm dia., 2000mm long, | F58: 97.67 | G58: 0.75 | H58: 0
C59: 13171010 | D59: Tube, 175mm dia., 2000mm long, | F59: 112.72 | G59: 0.75 | H59: 0
C60: 13201010 | D60: Tube, 200mm dia., 2000mm long, | F60: 126.45 | G60: 0.75 | H60: 0
C61: 13251010 | D61: Tube, 250mm dia., 2000mm long, | F61: 148.49 | G61: 0.75 | H61: 0
C62: 13301010 | D62: Tube, 300mm dia., 2000mm long, | F62: 172.91 | G62: 0.75 | H62: 0
C63: 13351010 | D63: Tube, 350mm dia., 2000mm long, | F63: 199.31 | G63: 0.75 | H63: 0
C64: 13401010 | D64: Tube, 400mm dia., 2000mm long, | F64: 260.69 | G64: 0.75 | H64: 0
C65: 13451010 | D65: Tube, 450mm dia., 2000mm long, | F65: 324.7 | G65: 0.75 | H65: 0
C66: 13501010 | D66: Tube, 500mm dia., 2000mm long, | F66: 366.28 | G66: 0.75 | H66: 0
C67: 13561010 | D67: Tube, 560mm dia., 2000mm long, | F67: 419.74 | G67: 0.75 | H67: 0
C68: 13631010 | D68: Tube, 630mm dia., 2000mm long, | F68: 472.54 | G68: 0.75 | H68: 0
B69: 14 gauge Painted | C69: 12101010 | D69: Tube, 100mm dia., 2000mm long, | F69: 56.1 | G69: 0.75 | H69: 0
C70: 12121010 | D70: Tube, 120mm dia., 2000mm long, | F70: 59.92 | G70: 0.75 | H70: 0
C71: 12141010 | D71: Tube, 140mm dia., 2000mm long, | F71: 70.22 | G71: 0.75 | H71: 0
C72: 12151010 | D72: Tube, 150mm dia., 2000mm long, | F72: 69.16 | G72: 0.75 | H72: 0
C73: 12171010 | D73: Tube, 175mm dia., 2000mm long, | F73: 79.06 | G73: 0.75 | H73: 0
C74: 12201010 | D74: Tube, 200mm dia., 2000mm long, | F74: 87.51 | G74: 0.75 | H74: 0
C75: 12221010 | D75: Tube, 224mm dia., 2000mm long, | F75: 92.53 | G75: 0.75 | H75: 0
C76: 12251010 | D76: Tube, 250mm dia., 2000mm long, | F76: 92.53 | G76: 0.75 | H76: 0
C77: 12301010 | D77: Tube, 300mm dia., 2000mm long, | F77: 110.35 | G77: 0.75 | H77: 0
C78: 12351010 | D78: Tube, 350mm dia., 2000mm long, | F78: 141.89 | G78: 0.75 | H78: =G78*F78*E78 -> 0
C79: 12401010 | D79: Tube, 400mm dia., 2000mm long, | F79: 199.31 | G79: 0.75 | H79: 0
C80: 12451010 | D80: Tube, 450mm dia., 2000mm long, | F80: 261.35 | G80: 0.75 | H80: 0
C81: 12501010 | D81: Tube, 500mm dia., 2000mm long, | F81: 285.11 | G81: 0.75 | H81: 0
C82: 12561010 | D82: Tube, 560mm dia., 2000mm long, | E82: ='Order Sheet'!D24 -> 0 | F82: 317.44 | G82: 0.75 | H82: 0
C83: 12631010 | D83: Tube, 630mm dia., 2000mm long, | E83: ='Order Sheet'!D25 -> 0 | F83: 359.68 | G83: 0.75 | H83: 0
B84: 19 gauge Painted | C84: 11061010 | D84: Tube 60mm dia., 2000mm long, 1 | E84: ='Order Sheet'!D9 -> 0 | F84: 31.15 | G84: 0.75 | H84: 0
C85: 11081010 | D85: Tube 80mm dia., 2000mm long, 1 | E85: ='Order Sheet'!D10 -> 0 | F85: 31.68 | G85: 0.75 | H85: 0
C86: 11101010 | D86: Tube, 100mm dia., 2000mm long, | E86: ='Order Sheet'!D11 -> 0 | F86: 32.47 | G86: 0.75 | H86: 0
C87: 11121010 | D87: Tube, 120mm dia., 2000mm long, | E87: ='Order Sheet'!D12 -> 0 | F87: 36.56 | G87: 0.75 | H87: 0
C88: 11141010 | D88: Tube, 140mm dia., 2000mm long, | E88: ='Order Sheet'!D13 -> 0 | F88: 44.75 | G88: 0.75 | H88: 0
C89: 11151010 | D89: Tube, 150mm dia., 2000mm long, | E89: ='Order Sheet'!D14 -> 0 | F89: 43.95 | G89: 0.75 | H89: 0
C90: 11171010 | D90: Tube, 175mm dia., 2000mm long, | E90: ='Order Sheet'!D15 -> 0 | F90: 50.82 | G90: 0.75 | H90: 0
C91: 11201010 | D91: Tube, 200mm dia., 2000mm long, | E91: ='Order Sheet'!D16 -> 0 | F91: 56.49 | G91: 0.75 | H91: 0
C92: 11221010 | D92: Tube, 224mm dia., 2000mm long, | E92: ='Order Sheet'!D17 -> 0 | F92: 65.2 | G92: 0.75 | H92: 0
C93: 11251010 | D93: Tube, 250mm dia., 2000mm long, | E93: ='Order Sheet'!D18 -> 0 | F93: 65.2 | G93: 0.75 | H93: 0
C94: 11301010 | D94: Tube, 300mm dia., 2000mm long, | E94: ='Order Sheet'!D19 -> 0 | F94: 74.71 | G94: 0.75 | H94: 0
C95: 11351010 | D95: Tube, 350mm dia., 2000mm long, | E95: ='Order Sheet'!D20 -> 0 | F95: 92.92 | G95: 0.75 | H95: 0
C96: 11401010 | D96: Tube, 400mm dia., 2000mm long, | E96: ='Order Sheet'!D21 -> 0 | F96: 134.63 | G96: 0.75 | H96: 0
C97: 11451010 | D97: Tube, 450mm dia., 2000mm long, | E97: ='Order Sheet'!D22 -> 0 | F97: 159.05 | G97: 0.75 | H97: 0
C98: 11501010 | D98: Tube, 500mm dia., 2000mm long, | E98: ='Order Sheet'!D23 -> 0 | F98: 168.3 | G98: 0.75 | H98: 0
A99: PIPE 1000mm (39") | B99: 19 gauge Stainless Steel | C99: 11063020 | D99: Tube, 60mm dia., 1000mm long, | F99: 57.69 | G99: 0.75 | H99: 0
C100: 11083020 | D100: Tube, 80mm dia., 1000mm long, | F100: 65.07 | G100: 0.75 | H100: 0
C101: 11103020 | D101: Tube, 100mm dia., 1000mm long, | F101: 65.6 | G101: 0.75 | H101: 0
C102: 11123020 | D102: Tube, 120mm dia., 1000mm long, | F102: 74.05 | G102: 0.75 | H102: 0
C103: 11143020 | D103: Tube, 140mm dia., 1000mm long, | F103: 85.27 | G103: 0.75 | H103: 0
C104: 11153020 | D104: Tube, 150mm dia., 1000mm long, | F104: 85.27 | G104: 0.75 | H104: 0
C105: 11173020 | D105: Tube, 175mm dia., 1000mm long, | F105: 94.9 | G105: 0.75 | H105: 0
C106: 11203020 | D106: Tube, 200mm dia., 1000mm long, | F106: 104.14 | G106: 0.75 | H106: 0
C107: 11223020 | D107: Tube, 224mm dia., 1000mm long, | F107: 120.51 | G107: 0.75 | H107: 0
C108: 11253020 | D108: Tube, 250mm dia., 1000mm long, | F108: 120.51 | G108: 0.75 | H108: 0
C109: 11303020 | D109: Tube, 300mm dia., 1000mm long, | F109: 143.87 | G109: 0.75 | H109: 0
C110: 11353020 | D110: Tube, 350mm dia., 1000mm long, | F110: 168.95 | G110: 0.75 | H110: 0
C111: 11403020 | D111: Tube, 400mm dia., 1000mm long, | F111: 217.13 | G111: 0.75 | H111: 0
C112: 11453020 | D112: Tube, 450mm dia., 1000mm long, | F112: 237.59 | G112: 0.75 | H112: 0
C113: 11503020 | D113: Tube, 500mm dia., 1000mm long, | F113: 266.63 | G113: 0.75 | H113: 0
B114: 14 gauge Stainless Steel | C114: 12103020 | D114: Tube, 100mm dia., 1000mm long, | F114: 105.2 | G114: 0.75 | H114: 0
C115: 12123020 | D115: Tube, 120mm dia., 1000mm long, | F115: 124.47 | G115: 0.75 | H115: 0
C116: 12153020 | D116: Tube, 150mm dia., 1000mm long, | F116: 145.19 | G116: 0.75 | H116: 0
C117: 12173020 | D117: Tube, 175mm dia., 1000mm long, | F117: 168.95 | G117: 0.75 | H117: 0
C118: 12203020 | D118: Tube, 200mm dia., 1000mm long, | F118: 190.07 | G118: 0.75 | H118: 0
C119: 12253020 | D119: Tube, 250mm dia., 1000mm long, | F119: 217.13 | G119: 0.75 | H119: 0
C120: 12303020 | D120: Tube, 300mm dia., 1000mm long, | F120: 254.09 | G120: 0.75 | H120: 0
C121: 12353020 | D121: Tube, 350mm dia., 1000mm long, | F121: 277.19 | G121: 0.75 | H121: 0
C122: 12403020 | D122: Tube, 400mm dia., 1000mm long, | F122: 334.6 | G122: 0.75 | H122: 0
C123: 12453020 | D123: Tube, 450mm dia, 1000mm long, | F123: 359.68 | G123: 0.75 | H123: 0
C124: 12503020 | D124: Tube, 500mm dia., 1000mm long, | F124: 415.78 | G124: 0.75 | H124: 0
C125: 12563020 | D125: Tube, 560mm dia., 1000mm long, | F125: 472.54 | G125: 0.75 | H125: 0
C126: 12633020 | D126: Tube, 630mm dia., 1000mm long, | F126: 525.33 | G126: 0.75 | H126: 0
B127: 14 gauge Galvanized | C127: 12562020 | D127: Tube, 560mm dia., 1000mm long, | F127: 266.63 | G127: 0.75 | H127: 0
C128: 12632020 | D128: Tube, 630mm dia., 1000mm long, | F128: 286.43 | G128: 0.75 | H128: 0
B129: 19 gauge Galvanized | C129: 11082020 | D129: Tube, 80mm dia., 1000mm long, | F129: 27.45 | G129: 0.75 | H129: 0
C130: 11102020 | D130: Tube, 100mm dia., 1000mm long, | F130: 27.59 | G130: 0.75 | H130: 0
C131: 11122020 | D131: Tube, 120mm dia., 1000mm long, | F131: 28.51 | G131: 0.75 | H131: 0
C132: 11142020 | D132: Tube, 140mm dia., 1000mm long, | F132: 33.66 | G132: 0.75 | H132: 0
C133: 11152020 | D133: Tube, 150mm dia., 1000mm long, | F133: 33.26 | G133: 0.75 | H133: 0
C134: 11172020 | D134: Tube, 175mm dia., 1000mm long, | F134: 44.22 | G134: 0.75 | H134: 0
C135: 11202020 | D135: Tube, 200mm dia., 1000mm long, | F135: 48.71 | G135: 0.75 | H135: 0
C136: 11222020 | D136: Tube, 224mm dia., 1000mm long, | F136: 49.89 | G136: 0.75 | H136: 0
C137: 11252020 | D137: Tube, 250mm dia., 1000mm long, | F137: 49.89 | G137: 0.75 | H137: 0
C138: 11302020 | D138: Tube, 300mm dia., 1000mm long, | F138: 58.08 | G138: 0.75 | H138: 0
C139: 11352020 | D139: Tube, 350mm dia., 1000mm long, | F139: 76.69 | G139: 0.75 | H139: 0
C140: 11402020 | D140: Tube, 400mm dia., 1000mm long, | F140: 89.36 | G140: 0.75 | H140: 0
C141: 11452020 | D141: Tube, 450mm dia., 1000mm long, | F141: 106.12 | G141: 0.75 | H141: 0
C142: 11502020 | D142: Tube, 500mm dia., 1000mm long, | F142: 117.88 | G142: 0.75 | H142: =G142*F142*E142 -> 0
B143: 11 gauge Painted | C143: 13121020 | D143: Tube, 120mm dia., 1000mm long, | F143: 46.33 | G143: 0.75 | H143: 0
C144: 13151020 | D144: Tube, 150mm dia., 1000mm long, | F144: 56.89 | G144: 0.75 | H144: 0
C145: 13171020 | D145: Tube, 175mm dia., 1000mm long, | F145: 62.43 | G145: 0.75 | H145: 0
C146: 13201020 | D146: Tube, 200mm dia., 1000mm long, | F146: 70.09 | G146: 0.75 | H146: 0
C147: 13251020 | D147: Tube, 250mm dia., 1000mm long, | F147: 84.34 | G147: 0.75 | H147: 0
C148: 13301020 | D148: Tube, 300mm dia., 1000mm long, | F148: 92.13 | G148: 0.75 | H148: 0
C149: 13351020 | D149: Tube, 350mm dia., 1000mm long, | F149: 102.69 | G149: 0.75 | H149: 0
C150: 13401020 | D150: Tube, 400mm dia., 1000mm long, | F150: 134.63 | G150: 0.75 | H150: 0
C151: 13451020 | D151: Tube, 450mm dia., 1000mm long, | F151: 168.29 | G151: 0.75 | H151: 0
C152: 13501020 | D152: Tube, 500mm dia., 1000mm long, | F152: 190.07 | G152: 0.75 | H152: 0
C153: 13561020 | D153: Tube, 560mm dia., 1000mm long, | F153: 217.79 | G153: 0.75 | H153: 0
C154: 13631020 | D154: Tube, 630mm dia., 1000mm long, | F154: 246.17 | G154: 0.75 | H154: 0
B155: 14 gauge Painted | C155: 12101020 | D155: Tube, 100mm dia., 1000mm long, | F155: 28.51 | G155: 0.75 | H155: 0
C156: 12121020 | D156: Tube, 120mm dia., 1000mm long, | F156: 31.41 | G156: 0.75 | H156: 0
C157: 12141020 | D157: Tube, 140mm dia., 1000mm long, | F157: 40.65 | G157: 0.75 | H157: 0
C158: 12151020 | D158: Tube, 150mm dia., 1000mm long, | F158: 40.13 | G158: 0.75 | H158: 0
C159: 12171020 | D159: Tube, 175mm dia., 1000mm long, | F159: 42.24 | G159: 0.75 | H159: 0
C160: 12201020 | D160: Tube, 200mm dia., 1000mm long, | F160: 46.33 | G160: 0.75 | H160: 0
C161: 12221020 | D161: Tube, 224mm dia., 1000mm long, | F161: 50.82 | G161: 0.75 | H161: 0
C162: 12251020 | D162: Tube, 250mm dia., 1000mm long, | F162: 50.82 | G162: 0.75 | H162: 0
C163: 12301020 | D163: Tube, 300mm dia., 1000mm long, | F163: 57.15 | G163: 0.75 | H163: 0
C164: 12351020 | D164: Tube, 350mm dia., 1000mm long, | F164: 73.52 | G164: 0.75 | H164: 0
C165: 12401020 | D165: Tube, 400mm dia., 1000mm long, | F165: 102.29 | G165: 0.75 | H165: 0
C166: 12451020 | D166: Tube, 450mm dia., 1000mm long, | F166: 134.63 | G166: 0.75 | H166: 0
C167: 12501020 | D167: Tube, 500mm dia., 1000mm long, | F167: 153.11 | G167: 0.75 | H167: 0
C168: 12561020 | D168: Tube, 560mm dia., 1000mm long, | E168: ='Order Sheet'!E24 -> 0 | F168: 163.67 | G168: 0.75 | H168: 0
C169: 12631020 | D169: Tube, 630mm dia., 1000mm long, | E169: ='Order Sheet'!E25 -> 0 | F169: 185.45 | G169: 0.75 | H169: 0
B170: 19 gauge Painted | C170: 11061020 | D170: Tube, 60mm dia., 1000mm long, | E170: ='Order Sheet'!E9 -> 0 | F170: 19.68 | G170: 0.75 | H170: 0
C171: 11081020 | D171: Tube, 80mm dia., 1000mm long, | E171: ='Order Sheet'!E10 -> 0 | F171: 19.94 | G171: 0.75 | H171: 0
C172: 11101020 | D172: Tube, 100mm dia., 1000mm long, | E172: ='Order Sheet'!E11 -> 0 | F172: 20.33 | G172: 0.75 | H172: 0
C173: 11121020 | D173: Tube, 120mm dia., 1000mm long, | E173: ='Order Sheet'!E12 -> 0 | F173: 23.23 | G173: 0.75 | H173: 0
C174: 11141020 | D174: Tube, 140mm dia., 1000mm long, | E174: ='Order Sheet'!E13 -> 0 | F174: 28.51 | G174: 0.75 | H174: 0
C175: 11151020 | D175: Tube, 150mm dia., 1000mm long, | E175: ='Order Sheet'!E14 -> 0 | F175: 28.11 | G175: 0.75 | H175: 0
C176: 11171020 | D176: Tube, 175mm dia., 1000mm long, | E176: ='Order Sheet'!E15 -> 0 | F176: 30.36 | G176: 0.75 | H176: 0
C177: 11201020 | D177: Tube, 200mm dia., 1000mm long, | E177: ='Order Sheet'!E16 -> 2 | F177: 34.05 | G177: 0.75 | H177: 51.075
C178: 11221020 | D178: Tube, 224mm dia., 1000mm long, | E178: ='Order Sheet'!E17 -> 0 | F178: 37.49 | G178: 0.75 | H178: 0
C179: 11251020 | D179: Tube, 250mm dia., 1000mm long, | E179: ='Order Sheet'!E18 -> 0 | F179: 37.49 | G179: 0.75 | H179: 0
C180: 11301020 | D180: Tube, 300mm dia., 1000mm long, | E180: ='Order Sheet'!E19 -> 0 | F180: 40.39 | G180: 0.75 | H180: 0
C181: 11351020 | D181: Tube, 350mm dia., 1000mm long, | E181: ='Order Sheet'!E20 -> 0 | F181: 55.31 | G181: 0.75 | H181: 0
C182: 11401020 | D182: Tube, 400mm dia., 1000mm long, | E182: ='Order Sheet'!E21 -> 0 | F182: 66.39 | G182: 0.75 | H182: 0
C183: 11451020 | D183: Tube, 450mm dia., 1000mm long, | E183: ='Order Sheet'!E22 -> 0 | F183: 79.2 | G183: 0.75 | H183: 0
C184: 11501020 | D184: Tube, 500mm dia., 1000mm long, | E184: ='Order Sheet'!E23 -> 0 | F184: 85 | G184: 0.75 | H184: 0
A185: PIPE 500mm (20") | B185: 19 gauge Stainless Steel | C185: 11063030 | D185: Tube, 60mm dia., 500mm long, 1 | F185: 33 | G185: 0.75 | H185: 0
C186: 11083030 | D186: Tube, 80mm dia., 500mm long, 1 | F186: 34.98 | G186: 0.75 | H186: 0
C187: 11103030 | D187: Tube, 100mm dia., 500mm long, | F187: 35.24 | G187: 0.75 | H187: 0
C188: 11123030 | D188: Tube, 120mm dia., 500mm long, | F188: 40.79 | G188: 0.75 | H188: 0
C189: 11143030 | D189: Tube, 140mm dia., 500mm long, | F189: 46.33 | G189: 0.75 | H189: 0
C190: 11153030 | D190: Tube, 150mm dia., 500mm long, | F190: 46.33 | G190: 0.75 | H190: 0
C191: 11173030 | D191: Tube, 175mm dia., 500mm long, | F191: 52.8 | G191: 0.75 | H191: 0
C192: 11203030 | D192: Tube, 200mm dia., 500mm long, | F192: 57.02 | G192: 0.75 | H192: 0
C193: 11223030 | D193: Tube, 224mm dia., 500mm long, | F193: 65.07 | G193: 0.75 | H193: 0
C194: 11253030 | D194: Tube, 250mm dia., 500mm long, | F194: 65.07 | G194: 0.75 | H194: 0
C195: 11303030 | D195: Tube, 300mm dia., 500mm long, | F195: 76.56 | G195: 0.75 | H195: 0
C196: 11353030 | D196: Tube, 350mm dia., 500mm long, | F196: 93.06 | G196: 0.75 | H196: 0
C197: 11403030 | D197: Tube, 400mm dia., 500mm long, | F197: 128.17 | G197: 0.75 | H197: 0
C198: 11453030 | D198: Tube, 450mm dia., 500mm long, | F198: 135.95 | G198: 0.75 | H198: 0
C199: 11503030 | D199: Tube, 500mm dia., 500mm long, | F199: 142.55 | G199: 0.75 | H199: 0
B200: 14 gauge Stainless Steel | C200: 12103030 | D200: Tube, 100mm dia., 500mm long, | F200: 55.31 | G200: 0.75 | H200: 0
C201: 12123030 | D201: Tube, 120mm dia., 500mm long, | F201: 63.22 | G201: 0.75 | H201: 0
C202: 12153030 | D202: Tube, 150mm dia., 500mm long, | F202: 75.1 | G202: 0.75 | H202: 0
C203: 12173030 | D203: Tube, 175mm dia., 500mm long, | F203: 86.32 | G203: 0.75 | H203: 0
C204: 12203030 | D204: Tube, 200mm dia., 500mm long, | F204: 96.22 | G204: 0.75 | H204: 0
C205: 12253030 | D205: Tube, 250mm dia., 500mm long, | F205: 115.76 | G205: 0.75 | H205: 0
C206: 12303030 | D206: Tube, 300mm dia., 500mm long, | F206: 131.73 | G206: 0.75 | H206: =G206*F206*E206 -> 0
C207: 12353030 | D207: Tube, 350mm dia., 500mm long, | F207: 147.83 | G207: 0.75 | H207: 0
C208: 12403030 | D208: Tube, 400mm dia., 500mm long, | F208: 188.09 | G208: 0.75 | H208: 0
... 609 more rows

Sheet Quote Sheet
C7: Project/Avani SO: | D7: ='Order Sheet'!L2 -> 0
C8: Ship to City/St: | D8: ='Order Sheet'!L3 -> 0
C9: Tag/Attn: | D9: ='Order Sheet'!L4 -> 0
C11: Part Number | E11: Quantity | F11: List Price | G11: Discount | H11: Avani Cost | I11: List Unit Price | J11: Cost/Unit | K11: 35% Margin Price per Unit
C12: 11063010 | D12: Tube, 60mm dia., 2000mm long, | F12: =I12*E12 -> 0 | G12: 0.75 | H12: =G12*I12*E12 -> 0 | I12: 101.51 | J12: =I12*G12 -> 76.1325 | K12: =J12/0.65 -> 117.1269231
C13: 11083010 | D13: Tube, 80mm dia., 2000mm long, | F13: 0 | G13: 0.75 | H13: 0 | I13: 121.57 | J13: 91.1775 | K13: =J13/0.65 -> 140.2730769
C14: 11103010 | D14: Tube, 100mm dia, 2000mm long, | F14: 0 | G14: 0.75 | H14: 0 | I14: 122.62 | J14: 91.965 | K14: 141.4846154
C15: 11123010 | D15: Tube, 120mm dia., 2000mm long, | F15: 0 | G15: 0.75 | H15: 0 | I15: 139.91 | J15: 104.9325 | K15: 161.4346154
C16: 11143010 | D16: Tube, 140mm dia., 2000mm long, | F16: 0 | G16: 0.75 | H16: 0 | I16: 161.69 | J16: 121.2675 | K16: 186.5653846
C17: 11153010 | D17: Tube, 150mm dia., 2000mm long, | F17: 0 | G17: 0.75 | H17: 0 | I17: 161.69 | J17: 121.2675 | K17: 186.5653846
C18: 11173010 | D18: Tube, 175mm dia., 2000mm long, | F18: 0 | G18: 0.75 | H18: 0 | I18: 176.87 | J18: 132.6525 | K18: 204.0807692
C19: 11203010 | D19: Tube, 200mm dia., 2000mm long, | F19: 0 | G19: 0.75 | H19: 0 | I19: 196.01 | J19: 147.0075 | K19: 226.1653846
C20: 11223010 | D20: Tube, 224mm dia., 2000mm long, | F20: 0 | G20: 0.75 | H20: 0 | I20: 217.79 | J20: 163.3425 | K20: 251.2961538
C21: 11253010 | D21: Tube, 250mm dia., 2000mm long, | F21: 0 | G21: 0.75 | H21: 0 | I21: 217.79 | J21: 163.3425 | K21: 251.2961538
C22: 11303010 | D22: Tube, 300mm dia., 2000mm long, | F22: 0 | G22: 0.75 | H22: 0 | I22: 265.97 | J22: 199.4775 | K22: 306.8884615
C23: 11353010 | D23: Tube, 350mm dia., 2000mm long, | F23: 0 | G23: 0.75 | H23: 0 | I23: 289.73 | J23: 217.2975 | K23: 334.3038462
C24: 11403010 | D24: Tube, 400mm dia., 2000mm long, | F24: 0 | G24: 0.75 | H24: 0 | I24: 367.61 | J24: 275.7075 | K24: 424.1653846
C25: 11453010 | D25: Tube, 450mm dia., 2000mm long, | F25: 0 | G25: 0.75 | H25: 0 | I25: 430.97 | J25: 323.2275 | K25: 497.2730769
C26: 11503010 | D26: Tube, 500mm dia., 2000mm long, | F26: 0 | G26: 0.75 | H26: 0 | I26: 502.25 | J26: 376.6875 | K26: 579.5192308
C27: 12103010 | D27: Tube, 100mm dia., 2000mm long, | F27: 0 | G27: 0.75 | H27: 0 | I27: 201.95 | J27: 151.4625 | K27: 233.0192308
C28: 12123010 | D28: Tube, 120mm dia., 2000mm long, | F28: 0 | G28: 0.75 | H28: 0 | I28: 233.63 | J28: 175.2225 | K28: 269.5730769
C29: 12153010 | D29: Tube, 150mm dia., 2000mm long, | F29: 0 | G29: 0.75 | H29: 0 | I29: 275.87 | J29: 206.9025 | K29: 318.3115385
C30: 12173010 | D30: Tube, 175mm dia., 2000mm long, | F30: 0 | G30: 0.75 | H30: 0 | I30: 306.88 | J30: 230.16 | K30: 354.0923077
C31: 12203010 | D31: Tube, 200mm dia., 2000mm long, | F31: 0 | G31: 0.75 | H31: 0 | I31: 366.28 | J31: 274.71 | K31: 422.6307692
C32: 12253010 | D32: Tube, 250mm dia., 2000mm long, | F32: 0 | G32: 0.75 | H32: 0 | I32: 419.08 | J32: 314.31 | K32: 483.5538462
C33: 12303010 | D33: Tube, 300mm dia., 2000mm long, | F33: 0 | G33: 0.75 | H33: 0 | I33: 492.33 | J33: 369.2475 | K33: 568.0730769
C34: 12353010 | D34: Tube, 350mm dia., 2000mm long, | F34: 0 | G34: 0.75 | H34: 0 | I34: 520.71 | J34: 390.5325 | K34: 600.8192308
C35: 12403010 | D35: Tube, 400mm dia., 2000mm long, | F35: 0 | G35: 0.75 | H35: 0 | I35: 603.21 | J35: 452.4075 | K35: 696.0115385
C36: 12453010 | D36: Tube, 450mm dia., 2000mm long, | F36: 0 | G36: 0.75 | H36: 0 | I36: 673.17 | J36: 504.8775 | K36: 776.7346154
C37: 12503010 | D37: Tube, 500mm dia., 2000mm long, | F37: 0 | G37: 0.75 | H37: 0 | I37: 796.58 | J37: 597.435 | K37: 919.1307692
C38: 12563010 | D38: Tube, 560mm dia., 2000mm long, | F38: 0 | G38: 0.75 | H38: 0 | I38: 854 | J38: 640.5 | K38: 985.3846154
C39: 12633010 | D39: Tube, 630mm dia., 2000mm long, | F39: 0 | G39: 0.75 | H39: 0 | I39: 933.19 | J39: 699.8925 | K39: 1076.757692
C40: 12562010 | D40: Tube, 560mm dia., 2000mm long, | F40: 0 | G40: 0.75 | H40: 0 | I40: 498.27 | J40: 373.7025 | K40: 574.9269231
C41: 12632010 | D41: Tube, 630mm dia., 2000mm long, | F41: 0 | G41: 0.75 | H41: 0 | I41: 558.99 | J41: 419.2425 | K41: 644.9884615
C42: 11082010 | D42: Tube, 80mm dia., 2000mm long, | F42: 0 | G42: 0.75 | H42: 0 | I42: 45.8 | J42: 34.35 | K42: 52.84615385
C43: 11102010 | D43: Tube, 100mm dia., 2000mm long, | F43: 0 | G43: 0.75 | H43: 0 | I43: 46.33 | J43: 34.7475 | K43: 53.45769231
C44: 11122010 | D44: Tube, 120mm dia., 2000mm long, | F44: 0 | G44: 0.75 | H44: 0 | I44: 51.48 | J44: 38.61 | K44: 59.4
C45: 11142010 | D45: Tube, 140mm dia., 2000mm long, | F45: 0 | G45: 0.75 | H45: 0 | I45: 62.7 | J45: 47.025 | K45: 72.34615385
C46: 11152010 | D46: Tube, 150mm dia., 2000mm long, | F46: 0 | G46: 0.75 | H46: 0 | I46: 62.17 | J46: 46.6275 | K46: 71.73461538
C47: 11172010 | D47: Tube, 175mm dia., 2000mm long, | F47: 0 | G47: 0.75 | H47: 0 | I47: 72.99 | J47: 54.7425 | K47: 84.21923077
C48: 11202010 | D48: Tube, 200mm dia., 2000mm long, | F48: 0 | G48: 0.75 | H48: 0 | I48: 83.68 | J48: 62.76 | K48: 96.55384615
C49: 11222010 | D49: Tube, 224mm dia., 2000mm long, | F49: 0 | G49: 0.75 | H49: 0 | I49: 90.28 | J49: 67.71 | K49: 104.1692308
C50: 11252010 | D50: Tube, 250mm dia., 2000mm long, | F50: 0 | G50: 0.75 | H50: 0 | I50: 90.28 | J50: 67.71 | K50: 104.1692308
C51: 11302010 | D51: Tube, 300mm dia., 2000mm long, | F51: 0 | G51: 0.75 | H51: 0 | I51: 107.31 | J51: 80.4825 | K51: 123.8192308
C52: 11352010 | D52: Tube, 350mm dia., 2000mm long, | F52: 0 | G52: 0.75 | H52: 0 | I52: 132.65 | J52: 99.4875 | K52: 153.0576923
C53: 11402010 | D53: Tube, 400mm dia., 2000mm long, | F53: 0 | G53: 0.75 | H53: 0 | I53: 173.57 | J53: 130.1775 | K53: 200.2730769
C54: 11452010 | D54: Tube, 450mm dia., 2000mm long, | F54: 0 | G54: 0.75 | H54: 0 | I54: 203.27 | J54: 152.4525 | K54: 234.5423077
C55: 11502010 | D55: Tube, 500mm dia., 2000mm long, | F55: 0 | G55: 0.75 | H55: 0 | I55: 225.06 | J55: 168.795 | K55: 259.6846154
C56: 13121010 | D56: Tube, 120mm dia., 2000mm long, | F56: 0 | G56: 0.75 | H56: 0 | I56: 82.36 | J56: 61.77 | K56: 95.03076923
C57: 13151010 | D57: Tube, 150mm dia., 2000mm long, | F57: 0 | G57: 0.75 | H57: 0 | I57: 97.67 | J57: 73.2525 | K57: 112.6961538
C58: 13171010 | D58: Tube, 175mm dia., 2000mm long, | F58: 0 | G58: 0.75 | H58: 0 | I58: 112.72 | J58: 84.54 | K58: 130.0615385
C59: 13201010 | D59: Tube, 200mm dia., 2000mm long, | F59: 0 | G59: 0.75 | H59: 0 | I59: 126.45 | J59: 94.8375 | K59: 145.9038462
C60: 13251010 | D60: Tube, 250mm dia., 2000mm long, | F60: 0 | G60: 0.75 | H60: 0 | I60: 148.49 | J60: 111.3675 | K60: 171.3346154
C61: 13301010 | D61: Tube, 300mm dia., 2000mm long, | F61: 0 | G61: 0.75 | H61: 0 | I61: 172.91 | J61: 129.6825 | K61: 199.5115385
C62: 13351010 | D62: Tube, 350mm dia., 2000mm long, | F62: 0 | G62: 0.75 | H62: 0 | I62: 199.31 | J62: 149.4825 | K62: 229.9730769
C63: 13401010 | D63: Tube, 400mm dia., 2000mm long, | F63: 0 | G63: 0.75 | H63: 0 | I63: 260.69 | J63: 195.5175 | K63: 300.7961538
C64: 13451010 | D64: Tube, 450mm dia., 2000mm long, | F64: 0 | G64: 0.75 | H64: 0 | I64: 324.7 | J64: 243.525 | K64: 374.6538462
C65: 13501010 | D65: Tube, 500mm dia., 2000mm long, | F65: 0 | G65: 0.75 | H65: 0 | I65: 366.28 | J65: 274.71 | K65: 422.6307692
C66: 13561010 | D66: Tube, 560mm dia., 2000mm long, | F66: 0 | G66: 0.75 | H66: 0 | I66: 419.74 | J66: 314.805 | K66: 484.3153846
C67: 13631010 | D67: Tube, 630mm dia., 2000mm long, | F67: 0 | G67: 0.75 | H67: 0 | I67: 472.54 | J67: 354.405 | K67: 545.2384615
C68: 12101010 | D68: Tube, 100mm dia., 2000mm long, | F68: 0 | G68: 0.75 | H68: 0 | I68: 56.1 | J68: 42.075 | K68: 64.73076923
C69: 12121010 | D69: Tube, 120mm dia., 2000mm long, | F69: 0 | G69: 0.75 | H69: 0 | I69: 59.92 | J69: 44.94 | K69: 69.13846154
C70: 12141010 | D70: Tube, 140mm dia., 2000mm long, | F70: 0 | G70: 0.75 | H70: 0 | I70: 70.22 | J70: 52.665 | K70: 81.02307692
C71: 12151010 | D71: Tube, 150mm dia., 2000mm long, | F71: 0 | G71: 0.75 | H71: 0 | I71: 69.16 | J71: 51.87 | K71: 79.8
C72: 12171010 | D72: Tube, 175mm dia., 2000mm long, | F72: 0 | G72: 0.75 | H72: 0 | I72: 79.06 | J72: 59.295 | K72: 91.22307692
C73: 12201010 | D73: Tube, 200mm dia., 2000mm long, | F73: 0 | G73: 0.75 | H73: 0 | I73: 87.51 | J73: 65.6325 | K73: 100.9730769
C74: 12221010 | D74: Tube, 224mm dia., 2000mm long, | F74: 0 | G74: 0.75 | H74: 0 | I74: 92.53 | J74: 69.3975 | K74: 106.7653846
C75: 12251010 | D75: Tube, 250mm dia., 2000mm long, | F75: 0 | G75: 0.75 | H75: 0 | I75: 92.53 | J75: 69.3975 | K75: 106.7653846
C76: 12301010 | D76: Tube, 300mm dia., 2000mm long, | F76: =I76*E76 -> 0 | G76: 0.75 | H76: =G76*I76*E76 -> 0 | I76: 110.35 | J76: =I76*G76 -> 82.7625 | K76: 127.3269231
C77: 12351010 | D77: Tube, 350mm dia., 2000mm long, | F77: 0 | G77: 0.75 | H77: 0 | I77: 141.89 | J77: 106.4175 | K77: =J77/0.65 -> 163.7192308
C78: 12401010 | D78: Tube, 400mm dia., 2000mm long, | F78: 0 | G78: 0.75 | H78: 0 | I78: 199.31 | J78: 149.4825 | K78: 229.9730769
C79: 12451010 | D79: Tube, 450mm dia., 2000mm long, | F79: 0 | G79: 0.75 | H79: 0 | I79: 261.35 | J79: 196.0125 | K79: 301.5576923
C80: 12501010 | D80: Tube, 500mm dia., 2000mm long, | F80: 0 | G80: 0.75 | H80: 0 | I80: 285.11 | J80: 213.8325 | K80: 328.9730769
C81: 12561010 | D81: Tube, 560mm dia., 2000mm long, | E81: ='Order Sheet'!D24 -> 0 | F81: 0 | G81: 0.75 | H81: 0 | I81: 317.44 | J81: 238.08 | K81: 366.2769231
C82: 12631010 | D82: Tube, 630mm dia., 2000mm long, | E82: ='Order Sheet'!D25 -> 0 | F82: 0 | G82: 0.75 | H82: 0 | I82: 359.68 | J82: 269.76 | K82: 415.0153846
C83: 11061010 | D83: Tube 60mm dia., 2000mm long, 1 | E83: ='Order Sheet'!D9 -> 0 | F83: 0 | G83: 0.75 | H83: 0 | I83: 31.15 | J83: 23.3625 | K83: 35.94230769
C84: 11081010 | D84: Tube 80mm dia., 2000mm long, 1 | E84: ='Order Sheet'!D10 -> 0 | F84: 0 | G84: 0.75 | H84: 0 | I84: 31.68 | J84: 23.76 | K84: 36.55384615
C85: 11101010 | D85: Tube, 100mm dia., 2000mm long, | E85: ='Order Sheet'!D11 -> 0 | F85: 0 | G85: 0.75 | H85: 0 | I85: 32.47 | J85: 24.3525 | K85: 37.46538462
C86: 11121010 | D86: Tube, 120mm dia., 2000mm long, | E86: ='Order Sheet'!D12 -> 0 | F86: 0 | G86: 0.75 | H86: 0 | I86: 36.56 | J86: 27.42 | K86: 42.18461538
C87: 11141010 | D87: Tube, 140mm dia., 2000mm long, | E87: ='Order Sheet'!D13 -> 0 | F87: 0 | G87: 0.75 | H87: 0 | I87: 44.75 | J87: 33.5625 | K87: 51.63461538
C88: 11151010 | D88: Tube, 150mm dia., 2000mm long, | E88: ='Order Sheet'!D14 -> 0 | F88: 0 | G88: 0.75 | H88: 0 | I88: 43.95 | J88: 32.9625 | K88: 50.71153846
C89: 11171010 | D89: Tube, 175mm dia., 2000mm long, | E89: ='Order Sheet'!D15 -> 0 | F89: 0 | G89: 0.75 | H89: 0 | I89: 50.82 | J89: 38.115 | K89: 58.63846154
C90: 11201010 | D90: Tube, 200mm dia., 2000mm long, | E90: ='Order Sheet'!D16 -> 0 | F90: 0 | G90: 0.75 | H90: 0 | I90: 56.49 | J90: 42.3675 | K90: 65.18076923
C91: 11221010 | D91: Tube, 224mm dia., 2000mm long, | E91: ='Order Sheet'!D17 -> 0 | F91: 0 | G91: 0.75 | H91: 0 | I91: 65.2 | J91: 48.9 | K91: 75.23076923
C92: 11251010 | D92: Tube, 250mm dia., 2000mm long, | E92: ='Order Sheet'!D18 -> 0 | F92: 0 | G92: 0.75 | H92: 0 | I92: 65.2 | J92: 48.9 | K92: 75.23076923
C93: 11301010 | D93: Tube, 300mm dia., 2000mm long, | E93: ='Order Sheet'!D19 -> 0 | F93: 0 | G93: 0.75 | H93: 0 | I93: 74.71 | J93: 56.0325 | K93: 86.20384615
C94: 11351010 | D94: Tube, 350mm dia., 2000mm long, | E94: ='Order Sheet'!D20 -> 0 | F94: 0 | G94: 0.75 | H94: 0 | I94: 92.92 | J94: 69.69 | K94: 107.2153846
C95: 11401010 | D95: Tube, 400mm dia., 2000mm long, | E95: ='Order Sheet'!D21 -> 0 | F95: 0 | G95: 0.75 | H95: 0 | I95: 134.63 | J95: 100.9725 | K95: 155.3423077
C96: 11451010 | D96: Tube, 450mm dia., 2000mm long, | E96: ='Order Sheet'!D22 -> 0 | F96: 0 | G96: 0.75 | H96: 0 | I96: 159.05 | J96: 119.2875 | K96: 183.5192308
C97: 11501010 | D97: Tube, 500mm dia., 2000mm long, | E97: ='Order Sheet'!D23 -> 0 | F97: 0 | G97: 0.75 | H97: 0 | I97: 168.3 | J97: 126.225 | K97: 194.1923077
C98: 11063020 | D98: Tube, 60mm dia., 1000mm long, | F98: 0 | G98: 0.75 | H98: 0 | I98: 57.69 | J98: 43.2675 | K98: 66.56538462
C99: 11083020 | D99: Tube, 80mm dia., 1000mm long, | F99: 0 | G99: 0.75 | H99: 0 | I99: 65.07 | J99: 48.8025 | K99: 75.08076923
C100: 11103020 | D100: Tube, 100mm dia., 1000mm long, | F100: 0 | G100: 0.75 | H100: 0 | I100: 65.6 | J100: 49.2 | K100: 75.69230769
C101: 11123020 | D101: Tube, 120mm dia., 1000mm long, | F101: 0 | G101: 0.75 | H101: 0 | I101: 74.05 | J101: 55.5375 | K101: 85.44230769
C102: 11143020 | D102: Tube, 140mm dia., 1000mm long, | F102: 0 | G102: 0.75 | H102: 0 | I102: 85.27 | J102: 63.9525 | K102: 98.38846154
C103: 11153020 | D103: Tube, 150mm dia., 1000mm long, | F103: 0 | G103: 0.75 | H103: 0 | I103: 85.27 | J103: 63.9525 | K103: 98.38846154
C104: 11173020 | D104: Tube, 175mm dia., 1000mm long, | F104: 0 | G104: 0.75 | H104: 0 | I104: 94.9 | J104: 71.175 | K104: 109.5
C105: 11203020 | D105: Tube, 200mm dia., 1000mm long, | F105: 0 | G105: 0.75 | H105: 0 | I105: 104.14 | J105: 78.105 | K105: 120.1615385
C106: 11223020 | D106: Tube, 224mm dia., 1000mm long, | F106: 0 | G106: 0.75 | H106: 0 | I106: 120.51 | J106: 90.3825 | K106: 139.05
C107: 11253020 | D107: Tube, 250mm dia., 1000mm long, | F107: 0 | G107: 0.75 | H107: 0 | I107: 120.51 | J107: 90.3825 | K107: 139.05
C108: 11303020 | D108: Tube, 300mm dia., 1000mm long, | F108: 0 | G108: 0.75 | H108: 0 | I108: 143.87 | J108: 107.9025 | K108: 166.0038462
C109: 11353020 | D109: Tube, 350mm dia., 1000mm long, | F109: 0 | G109: 0.75 | H109: 0 | I109: 168.95 | J109: 126.7125 | K109: 194.9423077
C110: 11403020 | D110: Tube, 400mm dia., 1000mm long, | F110: 0 | G110: 0.75 | H110: 0 | I110: 217.13 | J110: 162.8475 | K110: 250.5346154
C111: 11453020 | D111: Tube, 450mm dia., 1000mm long, | F111: 0 | G111: 0.75 | H111: 0 | I111: 237.59 | J111: 178.1925 | K111: 274.1423077
C112: 11503020 | D112: Tube, 500mm dia., 1000mm long, | F112: 0 | G112: 0.75 | H112: 0 | I112: 266.63 | J112: 199.9725 | K112: 307.65
C113: 12103020 | D113: Tube, 100mm dia., 1000mm long, | F113: 0 | G113: 0.75 | H113: 0 | I113: 105.2 | J113: 78.9 | K113: 121.3846154
C114: 12123020 | D114: Tube, 120mm dia., 1000mm long, | F114: 0 | G114: 0.75 | H114: 0 | I114: 124.47 | J114: 93.3525 | K114: 143.6192308
C115: 12153020 | D115: Tube, 150mm dia., 1000mm long, | F115: 0 | G115: 0.75 | H115: 0 | I115: 145.19 | J115: 108.8925 | K115: 167.5269231
C116: 12173020 | D116: Tube, 175mm dia., 1000mm long, | F116: 0 | G116: 0.75 | H116: 0 | I116: 168.95 | J116: 126.7125 | K116: 194.9423077
C117: 12203020 | D117: Tube, 200mm dia., 1000mm long, | F117: 0 | G117: 0.75 | H117: 0 | I117: 190.07 | J117: 142.5525 | K117: 219.3115385
C118: 12253020 | D118: Tube, 250mm dia., 1000mm long, | F118: 0 | G118: 0.75 | H118: 0 | I118: 217.13 | J118: 162.8475 | K118: 250.5346154
C119: 12303020 | D119: Tube, 300mm dia., 1000mm long, | F119: 0 | G119: 0.75 | H119: 0 | I119: 254.09 | J119: 190.5675 | K119: 293.1807692
C120: 12353020 | D120: Tube, 350mm dia., 1000mm long, | F120: 0 | G120: 0.75 | H120: 0 | I120: 277.19 | J120: 207.8925 | K120: 319.8346154
C121: 12403020 | D121: Tube, 400mm dia., 1000mm long, | F121: 0 | G121: 0.75 | H121: 0 | I121: 334.6 | J121: 250.95 | K121: 386.0769231
C122: 12453020 | D122: Tube, 450mm dia, 1000mm long, | F122: 0 | G122: 0.75 | H122: 0 | I122: 359.68 | J122: 269.76 | K122: 415.0153846
C123: 12503020 | D123: Tube, 500mm dia., 1000mm long, | F123: 0 | G123: 0.75 | H123: 0 | I123: 415.78 | J123: 311.835 | K123: 479.7461538
C124: 12563020 | D124: Tube, 560mm dia., 1000mm long, | F124: 0 | G124: 0.75 | H124: 0 | I124: 472.54 | J124: 354.405 | K124: 545.2384615
C125: 12633020 | D125: Tube, 630mm dia., 1000mm long, | F125: 0 | G125: 0.75 | H125: 0 | I125: 525.33 | J125: 393.9975 | K125: 606.15
C126: 12562020 | D126: Tube, 560mm dia., 1000mm long, | F126: 0 | G126: 0.75 | H126: 0 | I126: 266.63 | J126: 199.9725 | K126: 307.65
C127: 12632020 | D127: Tube, 630mm dia., 1000mm long, | F127: 0 | G127: 0.75 | H127: 0 | I127: 286.43 | J127: 214.8225 | K127: 330.4961538
C128: 11082020 | D128: Tube, 80mm dia., 1000mm long, | F128: 0 | G128: 0.75 | H128: 0 | I128: 27.45 | J128: 20.5875 | K128: 31.67307692
C129: 11102020 | D129: Tube, 100mm dia., 1000mm long, | F129: 0 | G129: 0.75 | H129: 0 | I129: 27.59 | J129: 20.6925 | K129: 31.83461538
C130: 11122020 | D130: Tube, 120mm dia., 1000mm long, | F130: 0 | G130: 0.75 | H130: 0 | I130: 28.51 | J130: 21.3825 | K130: 32.89615385
C131: 11142020 | D131: Tube, 140mm dia., 1000mm long, | F131: 0 | G131: 0.75 | H131: 0 | I131: 33.66 | J131: 25.245 | K131: 38.83846154
C132: 11152020 | D132: Tube, 150mm dia., 1000mm long, | F132: 0 | G132: 0.75 | H132: 0 | I132: 33.26 | J132: 24.945 | K132: 38.37692308
C133: 11172020 | D133: Tube, 175mm dia., 1000mm long, | F133: 0 | G133: 0.75 | H133: 0 | I133: 44.22 | J133: 33.165 | K133: 51.02307692
C134: 11202020 | D134: Tube, 200mm dia., 1000mm long, | F134: 0 | G134: 0.75 | H134: 0 | I134: 48.71 | J134: 36.5325 | K134: 56.20384615
C135: 11222020 | D135: Tube, 224mm dia., 1000mm long, | F135: 0 | G135: 0.75 | H135: 0 | I135: 49.89 | J135: 37.4175 | K135: 57.56538462
C136: 11252020 | D136: Tube, 250mm dia., 1000mm long, | F136: 0 | G136: 0.75 | H136: 0 | I136: 49.89 | J136: 37.4175 | K136: 57.56538462
C137: 11302020 | D137: Tube, 300mm dia., 1000mm long, | F137: 0 | G137: 0.75 | H137: 0 | I137: 58.08 | J137: 43.56 | K137: 67.01538462
C138: 11352020 | D138: Tube, 350mm dia., 1000mm long, | F138: 0 | G138: 0.75 | H138: 0 | I138: 76.69 | J138: 57.5175 | K138: 88.48846154
C139: 11402020 | D139: Tube, 400mm dia., 1000mm long, | F139: 0 | G139: 0.75 | H139: 0 | I139: 89.36 | J139: 67.02 | K139: 103.1076923
C140: 11452020 | D140: Tube, 450mm dia., 1000mm long, | F140: =I140*E140 -> 0 | G140: 0.75 | H140: =G140*I140*E140 -> 0 | I140: 106.12 | J140: =I140*G140 -> 79.59 | K140: 122.4461538
C141: 11502020 | D141: Tube, 500mm dia., 1000mm long, | F141: 0 | G141: 0.75 | H141: 0 | I141: 117.88 | J141: 88.41 | K141: =J141/0.65 -> 136.0153846
C142: 13121020 | D142: Tube, 120mm dia., 1000mm long, | F142: 0 | G142: 0.75 | H142: 0 | I142: 46.33 | J142: 34.7475 | K142: 53.45769231
C143: 13151020 | D143: Tube, 150mm dia., 1000mm long, | F143: 0 | G143: 0.75 | H143: 0 | I143: 56.89 | J143: 42.6675 | K143: 65.64230769
C144: 13171020 | D144: Tube, 175mm dia., 1000mm long, | F144: 0 | G144: 0.75 | H144: 0 | I144: 62.43 | J144: 46.8225 | K144: 72.03461538
C145: 13201020 | D145: Tube, 200mm dia., 1000mm long, | F145: 0 | G145: 0.75 | H145: 0 | I145: 70.09 | J145: 52.5675 | K145: 80.87307692
C146: 13251020 | D146: Tube, 250mm dia., 1000mm long, | F146: 0 | G146: 0.75 | H146: 0 | I146: 84.34 | J146: 63.255 | K146: 97.31538462
C147: 13301020 | D147: Tube, 300mm dia., 1000mm long, | F147: 0 | G147: 0.75 | H147: 0 | I147: 92.13 | J147: 69.0975 | K147: 106.3038462
C148: 13351020 | D148: Tube, 350mm dia., 1000mm long, | F148: 0 | G148: 0.75 | H148: 0 | I148: 102.69 | J148: 77.0175 | K148: 118.4884615
C149: 13401020 | D149: Tube, 400mm dia., 1000mm long, | F149: 0 | G149: 0.75 | H149: 0 | I149: 134.63 | J149: 100.9725 | K149: 155.3423077
C150: 13451020 | D150: Tube, 450mm dia., 1000mm long, | F150: 0 | G150: 0.75 | H150: 0 | I150: 168.29 | J150: 126.2175 | K150: 194.1807692
C151: 13501020 | D151: Tube, 500mm dia., 1000mm long, | F151: 0 | G151: 0.75 | H151: 0 | I151: 190.07 | J151: 142.5525 | K151: 219.3115385
C152: 13561020 | D152: Tube, 560mm dia., 1000mm long, | F152: 0 | G152: 0.75 | H152: 0 | I152: 217.79 | J152: 163.3425 | K152: 251.2961538
C153: 13631020 | D153: Tube, 630mm dia., 1000mm long, | F153: 0 | G153: 0.75 | H153: 0 | I153: 246.17 | J153: 184.6275 | K153: 284.0423077
C154: 12101020 | D154: Tube, 100mm dia., 1000mm long, | F154: 0 | G154: 0.75 | H154: 0 | I154: 28.51 | J154: 21.3825 | K154: 32.89615385
C155: 12121020 | D155: Tube, 120mm dia., 1000mm long, | F155: 0 | G155: 0.75 | H155: 0 | I155: 31.41 | J155: 23.5575 | K155: 36.24230769
C156: 12141020 | D156: Tube, 140mm dia., 1000mm long, | F156: 0 | G156: 0.75 | H156: 0 | I156: 40.65 | J156: 30.4875 | K156: 46.90384615
C157: 12151020 | D157: Tube, 150mm dia., 1000mm long, | F157: 0 | G157: 0.75 | H157: 0 | I157: 40.13 | J157: 30.0975 | K157: 46.30384615
C158: 12171020 | D158: Tube, 175mm dia., 1000mm long, | F158: 0 | G158: 0.75 | H158: 0 | I158: 42.24 | J158: 31.68 | K158: 48.73846154
C159: 12201020 | D159: Tube, 200mm dia., 1000mm long, | F159: 0 | G159: 0.75 | H159: 0 | I159: 46.33 | J159: 34.7475 | K159: 53.45769231
C160: 12221020 | D160: Tube, 224mm dia., 1000mm long, | F160: 0 | G160: 0.75 | H160: 0 | I160: 50.82 | J160: 38.115 | K160: 58.63846154
C161: 12251020 | D161: Tube, 250mm dia., 1000mm long, | F161: 0 | G161: 0.75 | H161: 0 | I161: 50.82 | J161: 38.115 | K161: 58.63846154
C162: 12301020 | D162: Tube, 300mm dia., 1000mm long, | F162: 0 | G162: 0.75 | H162: 0 | I162: 57.15 | J162: 42.8625 | K162: 65.94230769
C163: 12351020 | D163: Tube, 350mm dia., 1000mm long, | F163: 0 | G163: 0.75 | H163: 0 | I163: 73.52 | J163: 55.14 | K163: 84.83076923
C164: 12401020 | D164: Tube, 400mm dia., 1000mm long, | F164: 0 | G164: 0.75 | H164: 0 | I164: 102.29 | J164: 76.7175 | K164: 118.0269231
C165: 12451020 | D165: Tube, 450mm dia., 1000mm long, | F165: 0 | G165: 0.75 | H165: 0 | I165: 134.63 | J165: 100.9725 | K165: 155.3423077
C166: 12501020 | D166: Tube, 500mm dia., 1000mm long, | F166: 0 | G166: 0.75 | H166: 0 | I166: 153.11 | J166: 114.8325 | K166: 176.6653846
C167: 12561020 | D167: Tube, 560mm dia., 1000mm long, | E167: ='Order Sheet'!E24 -> 0 | F167: 0 | G167: 0.75 | H167: 0 | I167: 163.67 | J167: 122.7525 | K167: 188.85
C168: 12631020 | D168: Tube, 630mm dia., 1000mm long, | E168: ='Order Sheet'!E25 -> 0 | F168: 0 | G168: 0.75 | H168: 0 | I168: 185.45 | J168: 139.0875 | K168: 213.9807692
C169: 11061020 | D169: Tube, 60mm dia., 1000mm long, | E169: ='Order Sheet'!E9 -> 0 | F169: 0 | G169: 0.75 | H169: 0 | I169: 19.68 | J169: 14.76 | K169: 22.70769231
C170: 11081020 | D170: Tube, 80mm dia., 1000mm long, | E170: ='Order Sheet'!E10 -> 0 | F170: 0 | G170: 0.75 | H170: 0 | I170: 19.94 | J170: 14.955 | K170: 23.00769231
C171: 11101020 | D171: Tube, 100mm dia., 1000mm long, | E171: ='Order Sheet'!E11 -> 0 | F171: 0 | G171: 0.75 | H171: 0 | I171: 20.33 | J171: 15.2475 | K171: 23.45769231
C172: 11121020 | D172: Tube, 120mm dia., 1000mm long, | E172: ='Order Sheet'!E12 -> 0 | F172: 0 | G172: 0.75 | H172: 0 | I172: 23.23 | J172: 17.4225 | K172: 26.80384615
C173: 11141020 | D173: Tube, 140mm dia., 1000mm long, | E173: ='Order Sheet'!E13 -> 0 | F173: 0 | G173: 0.75 | H173: 0 | I173: 28.51 | J173: 21.3825 | K173: 32.89615385
C174: 11151020 | D174: Tube, 150mm dia., 1000mm long, | E174: ='Order Sheet'!E14 -> 0 | F174: 0 | G174: 0.75 | H174: 0 | I174: 28.11 | J174: 21.0825 | K174: 32.43461538
C175: 11171020 | D175: Tube, 175mm dia., 1000mm long, | E175: ='Order Sheet'!E15 -> 0 | F175: 0 | G175: 0.75 | H175: 0 | I175: 30.36 | J175: 22.77 | K175: 35.03076923
C176: 11201020 | D176: Tube, 200mm dia., 1000mm long, | E176: ='Order Sheet'!E16 -> 2 | F176: 68.1 | G176: 0.75 | H176: 51.075 | I176: 34.05 | J176: 25.5375 | K176: 39.28846154
C177: 11221020 | D177: Tube, 224mm dia., 1000mm long, | E177: ='Order Sheet'!E17 -> 0 | F177: 0 | G177: 0.75 | H177: 0 | I177: 37.49 | J177: 28.1175 | K177: 43.25769231
C178: 11251020 | D178: Tube, 250mm dia., 1000mm long, | E178: ='Order Sheet'!E18 -> 0 | F178: 0 | G178: 0.75 | H178: 0 | I178: 37.49 | J178: 28.1175 | K178: 43.25769231
C179: 11301020 | D179: Tube, 300mm dia., 1000mm long, | E179: ='Order Sheet'!E19 -> 0 | F179: 0 | G179: 0.75 | H179: 0 | I179: 40.39 | J179: 30.2925 | K179: 46.60384615
C180: 11351020 | D180: Tube, 350mm dia., 1000mm long, | E180: ='Order Sheet'!E20 -> 0 | F180: 0 | G180: 0.75 | H180: 0 | I180: 55.31 | J180: 41.4825 | K180: 63.81923077
C181: 11401020 | D181: Tube, 400mm dia., 1000mm long, | E181: ='Order Sheet'!E21 -> 0 | F181: 0 | G181: 0.75 | H181: 0 | I181: 66.39 | J181: 49.7925 | K181: 76.60384615
C182: 11451020 | D182: Tube, 450mm dia., 1000mm long, | E182: ='Order Sheet'!E22 -> 0 | F182: 0 | G182: 0.75 | H182: 0 | I182: 79.2 | J182: 59.4 | K182: 91.38461538
C183: 11501020 | D183: Tube, 500mm dia., 1000mm long, | E183: ='Order Sheet'!E23 -> 0 | F183: 0 | G183: 0.75 | H183: 0 | I183: 85 | J183: 63.75 | K183: 98.07692308
C184: 11063030 | D184: Tube, 60mm dia., 500mm long, 1 | F184: 0 | G184: 0.75 | H184: 0 | I184: 33 | J184: 24.75 | K184: 38.07692308
C185: 11083030 | D185: Tube, 80mm dia., 500mm long, 1 | F185: 0 | G185: 0.75 | H185: 0 | I185: 34.98 | J185: 26.235 | K185: 40.36153846
C186: 11103030 | D186: Tube, 100mm dia., 500mm long, | F186: 0 | G186: 0.75 | H186: 0 | I186: 35.24 | J186: 26.43 | K186: 40.66153846
C187: 11123030 | D187: Tube, 120mm dia., 500mm long, | F187: 0 | G187: 0.75 | H187: 0 | I187: 40.79 | J187: 30.5925 | K187: 47.06538462
C188: 11143030 | D188: Tube, 140mm dia., 500mm long, | F188: 0 | G188: 0.75 | H188: 0 | I188: 46.33 | J188: 34.7475 | K188: 53.45769231
C189: 11153030 | D189: Tube, 150mm dia., 500mm long, | F189: 0 | G189: 0.75 | H189: 0 | I189: 46.33 | J189: 34.7475 | K189: 53.45769231
C190: 11173030 | D190: Tube, 175mm dia., 500mm long, | F190: 0 | G190: 0.75 | H190: 0 | I190: 52.8 | J190: 39.6 | K190: 60.92307692
C191: 11203030 | D191: Tube, 200mm dia., 500mm long, | F191: 0 | G191: 0.75 | H191: 0 | I191: 57.02 | J191: 42.765 | K191: 65.79230769
C192: 11223030 | D192: Tube, 224mm dia., 500mm long, | F192: 0 | G192: 0.75 | H192: 0 | I192: 65.07 | J192: 48.8025 | K192: 75.08076923
C193: 11253030 | D193: Tube, 250mm dia., 500mm long, | F193: 0 | G193: 0.75 | H193: 0 | I193: 65.07 | J193: 48.8025 | K193: 75.08076923
C194: 11303030 | D194: Tube, 300mm dia., 500mm long, | F194: 0 | G194: 0.75 | H194: 0 | I194: 76.56 | J194: 57.42 | K194: 88.33846154
C195: 11353030 | D195: Tube, 350mm dia., 500mm long, | F195: 0 | G195: 0.75 | H195: 0 | I195: 93.06 | J195: 69.795 | K195: 107.3769231
C196: 11403030 | D196: Tube, 400mm dia., 500mm long, | F196: 0 | G196: 0.75 | H196: 0 | I196: 128.17 | J196: 96.1275 | K196: 147.8884615
C197: 11453030 | D197: Tube, 450mm dia., 500mm long, | F197: 0 | G197: 0.75 | H197: 0 | I197: 135.95 | J197: 101.9625 | K197: 156.8653846
C198: 11503030 | D198: Tube, 500mm dia., 500mm long, | F198: 0 | G198: 0.75 | H198: 0 | I198: 142.55 | J198: 106.9125 | K198: 164.4807692
C199: 12103030 | D199: Tube, 100mm dia., 500mm long, | F199: 0 | G199: 0.75 | H199: 0 | I199: 55.31 | J199: 41.4825 | K199: 63.81923077
C200: 12123030 | D200: Tube, 120mm dia., 500mm long, | F200: 0 | G200: 0.75 | H200: 0 | I200: 63.22 | J200: 47.415 | K200: 72.94615385
C201: 12153030 | D201: Tube, 150mm dia., 500mm long, | F201: 0 | G201: 0.75 | H201: 0 | I201: 75.1 | J201: 56.325 | K201: 86.65384615
C202: 12173030 | D202: Tube, 175mm dia., 500mm long, | F202: 0 | G202: 0.75 | H202: 0 | I202: 86.32 | J202: 64.74 | K202: 99.6
C203: 12203030 | D203: Tube, 200mm dia., 500mm long, | F203: 0 | G203: 0.75 | H203: 0 | I203: 96.22 | J203: 72.165 | K203: 111.0230769
C204: 12253030 | D204: Tube, 250mm dia., 500mm long, | F204: =I204*E204 -> 0 | G204: 0.75 | H204: =G204*I204*E204 -> 0 | I204: 115.76 | J204: =I204*G204 -> 86.82 | K204: 133.5692308
C205: 12303030 | D205: Tube, 300mm dia., 500mm long, | F205: 0 | G205: 0.75 | H205: 0 | I205: 131.73 | J205: 98.7975 | K205: =J205/0.65 -> 151.9961538
C206: 12353030 | D206: Tube, 350mm dia., 500mm long, | F206: 0 | G206: 0.75 | H206: 0 | I206: 147.83 | J206: 110.8725 | K206: 170.5730769
C207: 12403030 | D207: Tube, 400mm dia., 500mm long, | F207: 0 | G207: 0.75 | H207: 0 | I207: 188.09 | J207: 141.0675 | K207: 217.0269231
... 725 more rows

Sheet Sheet1
